bitfinex/quotes_SOLUSD_20220105
["timestamp","ask_amount","ask_price","bid_price","bid_amount"]
[1641341929564,8.78,168.52,168.39,0.76]
[1641341929764,9.28,168.52,168.38,22.41611389]
[1641341929965,9.28,168.52,168.38,22.91611389]
[1641341930564,9.28,168.52,168.38,24.36462175]
[1641341930964,9.28,168.52,168.38,24.62462175]
[1641341932167,9.02,168.52,168.38,24.62462175]
[1641341932367,9.02,168.52,168.39,22.5983]
[1641341932574,9.02,168.52,168.39,22.8583]
[1641341932772,9.02,168.52,168.4,1.44850786]
[1641341932967,9.02,168.52,168.4,1.70850786]
[1641341933168,9.02,168.52,168.4,2.20850786]
[1641341933368,8.52,168.52,168.4,2.20850786]
[1641341933568,9.02,168.52,168.4,2.20850786]
[1641341935574,9.28,168.52,168.4,2.20850786]
[1641341936175,9.02,168.52,168.4,2.20850786]
[1641341936377,9.02,168.52,168.42,2.3246484]
[1641341936576,9.02,168.52,168.42,2.5846484]
[1641341936776,9.28,168.52,168.42,2.5846484]
[1641341941679,9.02,168.52,168.42,2.3246484]
[1641341942283,9.28,168.52,168.42,3.77315626]
[1641341942482,9.02,168.52,168.42,2.3246484]
[1641341943086,8.52,168.52,168.42,3.0846484]
[1641341943484,8.52,168.52,168.42,4.53315626]
[1641341943894,8.78,168.52,168.42,4.53315626]
[1641341944086,8.52,168.52,168.42,4.53315626]
[1641341944386,8.52,168.52,168.42,9.37015626]
[1641341945789,8.52,168.52,168.42,4.53315626]
[1641341945988,0.08121775,168.54,168.42,4.53315626]
[1641341946189,0.08121775,168.54,168.43,24.9895]
[1641341946388,0.08121775,168.54,168.43,25.4895]
[1641341946588,0.08121775,168.54,168.43,27.19800786]
[1641341946790,0.08121775,168.54,168.43,28.54130786]
[1641341951899,0.08121775,168.54,168.43,35.17130786]
[1641341952920,0.08121775,168.54,168.43,44.00396155]
[1641341953321,0.08121775,168.54,168.44,9.31862202]
[1641341953519,0.08121775,168.54,168.45,8.52]
[1641341953722,0.08121775,168.54,168.46,96.8503]
[1641341953922,0.08121775,168.54,168.47,24.93230841]
[1641341954123,0.08121775,168.54,168.49,2.40914867]
[1641341954323,0.08121775,168.54,168.5,24.8486]
[1641341954723,0.08121775,168.54,168.5,25.3486]
[1641341954925,0.08121775,168.54,168.5,26.691]
[1641341955924,0.08121775,168.54,168.5,26.951]
[1641341956925,0.08121775,168.54,168.5,26.691]
[1641341957125,0.08121775,168.54,168.5,26.191]
[1641341957329,0.08121775,168.54,168.5,26.691]
[1641341957727,0.08121775,168.54,168.5,26.191]
[1641341957928,0.08121775,168.54,168.47,1.44850786]
[1641341958129,0.08121775,168.54,168.42,1.3153]
[1641341958331,8.10121775,168.55,168.42,1.3153]
[1641341958527,8.78,168.55,168.42,1.3153]
[1641341958728,9.28,168.55,168.42,1.3153]
[1641341958928,30.77497805,168.54,168.42,1.3153]
[1641341959228,31.03497805,168.54,168.42,1.3153]
[1641341959429,31.53497805,168.54,168.42,24.7237]
[1641341959729,31.53497805,168.54,168.42,25.2237]
[1641341960130,31.53497805,168.54,168.42,24.7237]
[1641341961031,31.53497805,168.54,168.42,26.17220786]
[1641341961431,31.53497805,168.54,168.42,26.67220786]
[1641341961733,31.03497805,168.54,168.42,26.67220786]
[1641341961932,31.53497805,168.54,168.42,25.2237]
[1641341963437,31.53497805,168.54,168.42,26.67220786]
[1641341963635,31.53497805,168.54,168.42,25.2237]
[1641341964036,0.76,168.54,168.42,25.2237]
[1641341964236,9.28,168.55,168.42,25.2237]
[1641341966137,9.02,168.55,168.42,25.2237]
[1641341966338,9.02,168.55,168.42,26.67220786]
[1641341966738,8.52,168.55,168.42,26.67220786]
[1641341967438,8.02,168.55,168.42,26.67220786]
[1641341969940,8.02,168.55,168.42,26.41220786]
[1641341970141,8.28,168.55,168.42,26.41220786]
[1641341970342,8.78,168.55,168.42,26.41220786]
[1641341970741,8.78,168.55,168.42,25.91220786]
[1641341970946,8.52,168.55,168.42,26.41220786]
[1641341971345,8.52,168.55,168.42,26.67220786]
[1641341971544,8.02,168.55,168.42,26.67220786]
[1641341975856,2.6807,168.6,168.42,35.19220786]
[1641341976056,2.6807,168.6,168.42,44.51082988]
[1641341976256,2.6807,168.6,168.42,50.36399231]
[1641341976257,3.1807,168.6,168.42,50.36399231]
[1641341976656,3.1807,168.6,168.42,59.26479231]
[1641341976856,2.6807,168.6,168.42,59.26479231]
[1641341977057,2.9407,168.6,168.42,59.26479231]
[1641341977256,3.4407,168.6,168.42,50.36399231]
[1641341977857,26.5176,168.6,168.42,50.36399231]
[1641341978256,26.2576,168.6,168.42,50.36399231]
[1641341978457,23.5769,168.6,168.42,50.36399231]
[1641341978662,0.5,168.6,168.42,50.36399231]
[1641341978859,102.4157,168.61,168.43,9.18087664]
[1641341979075,102.4157,168.61,168.44,8.52]
[1641341979277,102.4157,168.61,168.45,23.6999]
[1641341979477,0.5,168.61,168.47,2.84549976]
[1641341979676,0.5,168.61,168.49,25.49543939]
[1641341979877,41.06132769,168.62,168.5,22.8851]
[1641341980078,41.06132769,168.62,168.5,23.1451]
[1641341980279,41.06132769,168.62,168.5,23.6451]
[1641341980479,9.28,168.62,168.5,26.34460786]
[1641341981079,9.28,168.62,168.5,24.8961]
[1641341981579,40.85055021,168.62,168.5,24.8961]
[1641341983383,40.85055021,168.62,168.5,22.8851]
[1641341983581,40.85055021,168.62,168.47,2.84549976]
[1641341983781,23.1613,168.61,168.47,3.34549976]
[1641341983982,8.52,168.6,168.47,3.34549976]
[1641341984181,9.8757,168.6,168.47,3.34549976]
[1641341984379,10.1357,168.6,168.47,2.84549976]
[1641341984780,10.1357,168.6,168.47,3.10549976]
[1641341985785,9.8757,168.6,168.47,3.10549976]
[1641341985985,9.8757,168.6,168.48,23.9858]
[1641341986388,9.8757,168.6,168.48,24.2458]
[1641341986985,10.1357,168.6,168.48,24.2458]
[1641341995398,9.8757,168.6,168.48,24.7458]
[1641341996399,9.8757,168.6,168.48,26.0181]
[1641341997100,9.8757,168.6,168.48,27.46660786]
[1641341997300,9.8757,168.6,168.48,26.0181]
[1641341997503,10.1357,168.6,168.48,26.0181]
[1641341998032,10.1357,168.6,168.45,1.44850786]
[1641341998234,1.44850786,168.59,168.42,4.03600786]
[1641341998432,8.52,168.58,168.43,24.1106]
[1641341998632,8.52,168.58,168.42,4.03600786]
[1641341998832,1.44850786,168.57,168.39,1.44850786]
[1641341999033,1.44850786,168.57,168.4,2.70627338]
[1641341999034,8.52,168.56,168.4,2.70627338]
[1641341999435,31.15985888,168.54,168.4,2.70627338]
[1641341999631,8.52,168.53,168.4,2.70627338]
[1641341999832,9.02,168.53,168.4,2.70627338]
[1641342000034,9.28,168.53,168.4,2.70627338]
[1641342000332,9.28,168.53,168.4,2.96627338]
[1641342000532,9.28,168.53,168.35,8.52]
[1641342000735,25.66310786,168.52,168.33,73.361]
[1641342000935,8.52,168.51,168.32,24.4074]
[1641342001133,9.96850786,168.51,168.32,24.4074]
[1641342001337,1.44850786,168.5,168.32,24.4074]
[1641342001534,8.52,168.49,168.33,30.30433599]
[1641342001936,9.28,168.49,168.33,30.30433599]
[1641342002132,9.28,168.49,168.33,30.80433599]
[1641342002334,25.87620185,168.47,168.33,30.30433599]
[1641342002533,34.65620185,168.47,168.33,30.30433599]
[1641342002735,35.15620185,168.47,168.33,30.80433599]
[1641342003933,35.15620185,168.47,168.33,31.06433599]
[1641342004333,35.15620185,168.47,168.33,2.93993672]
[1641342005136,34.65620185,168.47,168.33,2.93993672]
[1641342005335,34.65620185,168.47,168.31,92.7]
[1641342005739,36.10470971,168.47,168.31,92.7]
[1641342006135,1.2486,168.46,168.31,92.7]
[1641342006337,8.52,168.45,168.31,92.7]
[1641342006536,8.52,168.45,168.32,2.91736435]
[1641342006537,8.78,168.45,168.32,2.91736435]
[1641342006737,9.28,168.45,168.32,2.91736435]
[1641342007538,9.28,168.45,168.32,3.17736435]
[1641342007737,9.28,168.45,168.32,81.83376435]
[1641342007936,9.28,168.45,168.32,81.57376435]
[1641342007937,25.80969073,168.43,168.32,81.57376435]
[1641342008137,8.52,168.42,168.32,2.91736435]
[1641342008538,9.28,168.42,168.32,2.91736435]
[1641342009337,9.28,168.42,168.32,3.17736435]
[1641342010538,9.28,168.42,168.32,0.26]
[1641342010939,9.28,168.42,168.3,29.8798]
[1641342011341,9.28,168.42,168.3,28.6356]
[1641342011540,9.28,168.42,168.3,4.26]
[1641342011740,9.28,168.42,168.3,4.0]
[1641342011940,10.72850786,168.42,168.3,4.0]
[1641342014241,12.40520025,168.41,168.3,4.0]
[1641342014443,8.52,168.4,168.3,4.0]
[1641342014743,9.96850786,168.4,168.3,4.0]
[1641342014946,8.9171,168.39,168.3,4.0]
[1641342015143,8.52,168.38,168.3,4.0]
[1641342015443,25.10273098,168.37,168.3,4.0]
[1641342015642,8.52,168.36,168.3,4.0]
[1641342016042,9.28,168.36,168.3,4.0]
[1641342016444,18.1988,168.36,168.3,4.0]
[1641342016943,1.44850786,168.35,168.3,4.0]
[1641342017142,8.52,168.34,168.3,4.0]
[1641342017345,23.8768226,168.33,168.3,4.0]
[1641342017545,8.52,168.32,168.3,4.0]
[1641342017945,9.28,168.32,168.3,4.0]
[1641342025047,60.44850786,168.31,168.12,77.6462]
[1641342025248,60.44850786,168.31,168.1,108.4528]
[1641342025249,8.52,168.3,168.14,101.1334]
[1641342025452,8.52,168.3,168.1,108.4528]
[1641342025453,10.46850786,168.3,168.08,431.52640928]
[1641342025648,24.6988,168.29,168.1,1.3627]
[1641342025849,8.52,168.28,168.1,1.8627]
[1641342026050,25.60995985,168.27,168.11,2.30102031]
[1641342026248,8.52,168.26,168.11,2.30102031]
[1641342026450,9.02,168.26,168.11,2.80102031]
[1641342026649,9.28,168.26,168.11,2.80102031]
[1641342027250,10.597,168.26,168.11,2.80102031]
[1641342027650,10.597,168.26,168.11,3.06102031]
[1641342027850,17.156,168.26,168.11,3.06102031]
[1641342028249,1.44850786,168.25,168.11,3.06102031]
[1641342028451,8.52,168.24,168.11,27.30112031]
[1641342028653,27.91437791,168.23,168.11,27.30112031]
[1641342028851,8.52,168.22,168.11,27.30112031]
[1641342029051,8.78,168.22,168.12,27.33781549]
[1641342029251,9.28,168.22,168.12,27.33781549]
[1641342029452,9.28,168.22,168.12,27.59781549]
[1641342029853,0.5,168.22,168.12,27.59781549]
[1641342030054,8.52,168.27,168.12,28.09781549]
[1641342030254,0.5,168.25,168.23,0.18396693]
[1641342030454,0.5,168.25,168.14,1.2559]
[1641342030854,26.52008986,168.27,168.14,2.0159]
[1641342031483,27.02008986,168.27,168.15,2.42744004]
[1641342031959,27.28008986,168.27,168.15,3.18744004]
[1641342032558,26.52008986,168.27,168.16,24.77885487]
[1641342032957,26.52008986,168.27,168.16,25.53885487]
[1641342033163,8.52,168.29,168.16,30.92285487]
[1641342033358,8.52,168.29,168.16,31.73175487]
[1641342033958,8.52,168.29,168.17,24.1522]
[1641342034160,24.47411149,168.28,168.17,24.1522]
[1641342034359,24.47411149,168.28,168.17,24.9122]
[1641342039365,24.47411149,168.28,168.17,26.36070786]
[1641342039764,24.47411149,168.28,168.17,24.9122]
[1641342040870,24.97411149,168.28,168.17,24.6522]
[1641342041674,25.23411149,168.28,168.17,24.1522]
[1641342041873,25.23411149,168.28,168.17,24.6522]
[1641342042074,25.23411149,168.28,168.17,24.1522]
[1641342042275,25.23411149,168.28,168.17,24.6522]
[1641342042477,25.23411149,168.28,168.17,24.1522]
[1641342042878,25.23411149,168.28,168.17,24.6522]
[1641342043178,25.23411149,168.28,168.17,24.1522]
[1641342043378,25.23411149,168.28,168.17,24.4122]
[1641342043778,25.23411149,168.28,168.17,24.9122]
[1641342043980,25.23411149,168.28,168.17,24.4122]
[1641342044277,25.23411149,168.28,168.17,24.9122]
[1641342044877,25.23411149,168.28,168.17,24.4122]
[1641342045277,25.23411149,168.28,168.17,24.9122]
[1641342045479,25.23411149,168.28,168.17,24.4122]
[1641342046379,25.23411149,168.28,168.17,24.9122]
[1641342046597,33.75411149,168.28,168.17,24.4122]
[1641342046998,33.75411149,168.28,168.17,24.9122]
[1641342047396,33.75411149,168.28,168.15,2.42744004]
[1641342047597,35.20261935,168.28,168.15,2.42744004]
[1641342048798,35.20261935,168.28,168.15,2.68744004]
[1641342049401,35.20261935,168.28,168.16,1.2587]
[1641342049602,35.20261935,168.28,168.16,1.5187]
[1641342049799,33.75411149,168.28,168.16,1.5187]
[1641342051105,1.44850786,168.27,168.16,1.5187]
[1641342051307,8.52,168.26,168.16,0.26]
[1641342051504,8.78,168.26,168.15,2.68744004]
[1641342051705,9.28,168.26,168.15,2.68744004]
[1641342051905,9.28,168.26,168.15,27.65477895]
[1641342052306,9.02,168.26,168.15,27.65477895]
[1641342052707,9.02,168.26,168.16,23.4065]
[1641342052906,9.02,168.26,168.16,23.9065]
[1641342053107,9.02,168.26,168.16,24.1665]
[1641342053509,9.28,168.26,168.16,24.1665]
[1641342053710,9.02,168.26,168.16,24.1665]
[1641342053906,9.02,168.26,168.16,25.4209]
[1641342054309,9.02,168.26,168.16,24.9209]
[1641342054508,9.28,168.26,168.16,24.9209]
[1641342055411,9.28,168.26,168.16,25.4209]
[1641342055811,9.28,168.26,168.08,10.6293845]
[1641342056009,0.32447947,168.23,168.09,100.7887]
[1641342056209,8.52,168.22,168.09,100.7887]
[1641342056411,9.02,168.22,168.09,100.7887]
[1641342056610,9.28,168.22,168.09,99.5418]
[1641342056810,26.58574042,168.21,168.1,2.50183856]
[1641342057013,8.52,168.2,168.1,2.50183856]
[1641342057210,8.52,168.2,168.09,99.5418]
[1641342057415,9.28,168.2,168.09,100.0418]
[1641342058515,9.28,168.2,168.1,2.4115478]
[1641342059613,9.28,168.2,168.1,2.6715478]
[1641342061621,9.02,168.2,168.1,2.6715478]
[1641342062123,9.02,168.2,168.1,3.1715478]
[1641342062734,0.5,168.2,168.1,3.1715478]
[1641342062926,25.31928089,168.21,168.11,54.90902565]
[1641342063132,25.31928089,168.21,168.11,55.16902565]
[1641342063426,25.31928089,168.21,168.11,55.66902565]
[1641342064231,25.31928089,168.21,168.11,55.16902565]
[1641342065031,25.81928089,168.21,168.11,55.66902565]
[1641342066234,25.81928089,168.21,168.11,55.16902565]
[1641342066437,25.81928089,168.21,168.11,55.66902565]
[1641342066842,25.81928089,168.21,168.11,55.16902565]
[1641342067442,25.81928089,168.21,168.11,55.66902565]
[1641342069244,25.31928089,168.21,168.11,55.66902565]
[1641342069444,9.7755,168.26,168.11,55.66902565]
[1641342069645,8.52,168.26,168.11,79.26012565]
[1641342069845,9.02,168.26,168.12,1.44850786]
[1641342070045,9.02,168.26,168.12,1.70850786]
[1641342070245,9.02,168.26,168.12,0.76]
[1641342070445,37.88238321,168.26,168.12,0.76]
[1641342070845,37.88238321,168.26,168.13,1.2571]
[1641342071044,37.88238321,168.26,168.13,1.5171]
[1641342071245,37.88238321,168.26,168.13,2.0171]
[1641342074375,38.14238321,168.26,168.13,1.5171]
[1641342076375,1.2833,168.25,168.13,1.5171]
[1641342076586,1.5433,168.25,168.13,1.5171]
[1641342076777,2.0433,168.25,168.13,1.5171]
[1641342078481,2.0433,168.25,168.13,2.0171]
[1641342081789,2.0433,168.25,168.13,1.5171]
[1641342081990,8.52,168.24,168.13,0.26]
[1641342082188,8.52,168.24,168.11,47.4857]
[1641342082388,9.28,168.24,168.11,47.4857]
[1641342083388,30.63659019,168.22,168.11,46.2247]
[1641342083588,39.41659019,168.22,168.11,1.2865]
[1641342083889,39.91659019,168.22,168.11,1.2865]
[1641342085410,39.91659019,168.22,168.11,26.4723]
[1641342089013,39.91659019,168.22,168.11,0.26]
[1641342089413,39.91659019,168.22,168.1,22.6715478]
[1641342089814,39.91659019,168.22,168.1,45.1830478]
[1641342090014,39.91659019,168.22,168.1,45.6830478]
[1641342091115,39.91659019,168.22,168.11,1.3212]
[1641342091617,39.91659019,168.22,168.11,0.26]
[1641342092115,39.91659019,168.22,168.1,42.5115]
[1641342092116,41.36509805,168.22,168.1,20.0]
[1641342092315,45.99409805,168.22,168.1,20.0]
[1641342093117,8.9265,168.21,168.1,20.0]
[1641342093317,8.52,168.2,168.1,20.0]
[1641342093517,8.78,168.2,168.1,20.0]
[1641342093717,9.28,168.2,168.1,20.0]
[1641342094321,19.65510786,168.2,168.1,20.0]
[1641342094717,19.65510786,168.2,167.96,553.54876212]
[1641342094718,20.0,168.1,167.96,553.54876212]
[1641342094919,29.02,168.1,167.92,99.2231]
[1641342095219,1.267,168.09,167.92,99.2231]
[1641342095417,34.70716783,168.08,167.93,30.11888484]
[1641342095617,34.96716783,168.08,167.93,30.11888484]
[1641342095819,35.46716783,168.08,167.93,30.11888484]
[1641342096017,36.91567569,168.08,167.93,30.11888484]
[1641342096620,45.84877569,168.08,167.93,30.11888484]
[1641342097121,45.84877569,168.08,167.93,30.61888484]
[1641342097520,45.84877569,168.08,167.93,30.87888484]
[1641342097718,45.84877569,168.08,167.93,30.61888484]
[1641342098522,45.84877569,168.08,167.93,3.27010278]
[1641342098922,36.91567569,168.08,167.93,3.27010278]
[1641342099123,36.91567569,168.08,167.93,3.53010278]
[1641342100522,35.46716783,168.08,167.93,3.53010278]
[1641342100721,35.46716783,168.08,167.93,26.54240278]
[1641342100923,8.52,168.08,167.94,75.5248]
[1641342101123,20.0,168.1,167.95,8.52]
[1641342101325,20.0,168.1,167.95,134.42762688]
[1641342101522,20.0,168.1,167.96,8.0915735]
[1641342101723,20.0,168.1,167.97,8.52]
[1641342101922,20.0,168.1,167.98,30.42841516]
[1641342102123,20.0,168.1,168.0,2.31397463]
[1641342102425,20.0,168.1,168.02,31.6778955]
[1641342102923,20.0,168.1,168.02,32.4378955]
[1641342103122,20.0,168.1,168.03,1.44850786]
[1641342103523,20.0,168.1,168.03,1.70850786]
[1641342104123,20.0,168.1,168.03,0.26]
[1641342104522,20.0,168.1,168.0,3.07397463]
[1641342104924,20.0,168.1,168.01,1.44850786]
[1641342105123,20.0,168.1,168.01,1.70850786]
[1641342105324,20.0,168.1,168.01,2.20850786]
[1641342105723,20.0,168.1,168.02,1.44850786]
[1641342106127,20.0,168.1,168.02,1.70850786]
[1641342108128,20.0,168.1,168.02,0.26]
[1641342108531,20.0,168.1,168.0,25.5770613]
[1641342108929,20.0,168.1,168.01,1.44850786]
[1641342109131,20.0,168.1,168.01,1.70850786]
[1641342109330,20.0,168.1,168.01,2.20850786]
[1641342109731,20.0,168.1,168.01,1.70850786]
[1641342110931,20.5,168.1,168.01,0.26]
[1641342111133,28.19695426,168.09,168.0,25.0770613]
[1641342111334,28.19695426,168.09,168.0,3.07397463]
[1641342112539,28.19695426,168.09,168.0,4.52248249]
[1641342112732,28.19695426,168.09,168.0,4.02248249]
[1641342113131,28.19695426,168.09,168.0,3.76248249]
[1641342113333,8.52,168.08,167.98,47.8937]
[1641342113544,8.78,168.08,167.98,47.8937]
[1641342113731,9.28,168.08,167.98,47.8937]
[1641342113932,9.28,168.08,167.94,76.97330786]
[1641342114332,9.28,168.08,167.95,2.95717678]
[1641342114733,9.28,168.08,167.95,3.45717678]
[1641342115335,9.28,168.08,167.95,3.71717678]
[1641342115540,8.78,168.08,167.95,3.71717678]
[1641342116136,8.78,168.08,167.95,26.82106959]
[1641342116336,8.78,168.08,167.95,28.26957745]
[1641342116536,8.78,168.08,167.95,50.52987745]
[1641342116537,8.52,168.08,167.95,50.52987745]
[1641342116736,8.52,168.08,167.95,51.02987745]
[1641342117338,8.02,168.08,167.95,51.02987745]
[1641342117740,20.0,168.1,167.96,8.52]
[1641342118041,20.0,168.1,167.97,23.6772]
[1641342118238,20.0,168.1,167.97,25.12570786]
[1641342118439,20.0,168.1,167.99,23.81686274]
[1641342118844,20.0,168.1,168.01,2.4315929]
[1641342119045,20.0,168.1,168.01,2.6915929]
[1641342119241,20.0,168.1,168.01,3.1915929]
[1641342119643,20.0,168.1,168.01,2.6915929]
[1641342119843,20.0,168.1,168.01,3.1915929]
[1641342120043,20.0,168.1,168.01,2.6915929]
[1641342120246,20.0,168.1,168.01,3.1915929]
[1641342120447,20.0,168.1,168.01,2.6915929]
[1641342121246,20.0,168.1,168.01,3.1915929]
[1641342121845,20.76,168.1,168.01,2.4315929]
[1641342122046,23.64285822,168.09,168.01,2.4315929]
[1641342122446,24.40285822,168.09,168.01,2.4315929]
[1641342123047,0.5,168.09,168.01,2.4315929]
[1641342123247,0.5,168.09,168.01,2.6915929]
[1641342123448,20.0,168.1,168.01,3.1915929]
[1641342123847,20.5,168.1,168.01,3.1915929]
[1641342124048,25.94924361,168.09,168.01,3.1915929]
[1641342124249,25.94924361,168.09,168.01,2.6915929]
[1641342126354,25.94924361,168.09,168.01,3.1915929]
[1641342130457,25.94924361,168.09,168.01,2.6915929]
[1641342133487,25.94924361,168.09,168.01,3.1915929]
[1641342134786,25.94924361,168.09,168.01,2.6915929]
[1641342134986,34.72924361,168.09,167.98,1.2947]
[1641342135187,35.22924361,168.09,167.98,0.26]
[1641342135386,36.50644361,168.09,167.95,24.2683]
[1641342135787,36.50644361,168.09,167.94,75.5248]
[1641342135989,36.50644361,168.09,167.95,2.22186048]
[1641342136787,36.50644361,168.09,167.95,2.48186048]
[1641342137188,36.50644361,168.09,167.95,2.98186048]
[1641342137790,36.24644361,168.09,167.96,1.3078]
[1641342138089,36.24644361,168.09,167.96,1.5678]
[1641342138690,36.24644361,168.09,167.96,2.0678]
[1641342139090,36.50644361,168.09,167.96,2.0678]
[1641342141596,36.50644361,168.09,167.96,1.5678]
[1641342143603,36.50644361,168.09,167.96,1.3078]
[1641342145000,36.50644361,168.09,167.96,1.5678]
[1641342145603,36.24644361,168.09,167.96,3.01630786]
[1641342145804,36.24644361,168.09,167.98,31.50246416]
[1641342146005,36.24644361,168.09,167.98,31.76246416]
[1641342146607,8.52,168.09,167.99,1.44850786]
[1641342146804,20.0,168.1,167.99,1.44850786]
[1641342147006,20.0,168.1,167.99,2.20850786]
[1641342147205,20.0,168.1,167.99,26.12520786]
[1641342147406,20.0,168.1,168.0,1.44850786]
[1641342147605,20.0,168.1,168.01,2.9946574]
[1641342148005,20.0,168.1,168.02,30.67035736]
[1641342148405,20.0,168.1,168.03,1.44850786]
[1641342148606,20.0,168.1,168.03,1.70850786]
[1641342148807,20.0,168.1,168.03,2.20850786]
[1641342149006,20.0,168.1,168.04,1.44850786]
[1641342149406,20.0,168.1,168.04,2.20850786]
[1641342150407,20.0,168.1,168.05,49.44850786]
[1641342150408,0.0001,168.1,168.05,49.44850786]
[1641342150609,0.0001,168.1,168.06,23.2523]
[1641342150806,0.0001,168.1,168.06,24.70080786]
[1641342151007,0.0001,168.1,168.06,25.46080786]
[1641342151208,0.0001,168.1,168.06,24.0123]
[1641342155222,0.0001,168.1,168.07,1.44850786]
[1641342155520,0.0001,168.1,168.08,3.03219995]
[1641342155721,0.0001,168.1,168.09,24.1626]
[1641342156120,0.0001,168.1,168.09,24.4226]
[1641342158123,0.0001,168.1,168.09,25.87110786]
[1641342158422,0.0001,168.1,168.09,26.37110786]
[1641342159041,0.0001,168.1,168.09,29.40330783]
[1641342166646,0.0001,168.1,168.09,27.95479997]
[1641342167044,0.0001,168.1,168.09,27.45479997]
[1641342167244,0.0001,168.1,168.09,3.29219997]
[1641342167649,0.0001,168.1,168.09,3.03219997]
[1641342169951,0.0001,168.1,168.09,3.53219997]
[1641342170152,0.0001,168.1,168.09,3.29219997]
[1641342174760,0.0001,168.1,168.09,3.03219997]
[1641342174961,0.0001,168.1,168.08,3.03219995]
[1641342175762,0.0001,168.1,168.09,3.03219997]
[1641342176661,0.0001,168.1,168.08,3.03219995]
[1641342176863,0.0001,168.1,168.05,24.0146]
[1641342177066,0.0001,168.1,168.05,24.2746]
[1641342177868,0.0001,168.1,168.02,1.3195]
[1641342179268,0.0001,168.1,168.03,102.0991]
[1641342183274,0.0001,168.1,168.04,24.8834]
[1641342183474,0.0001,168.1,168.04,25.1434]
[1641342184377,0.0001,168.1,167.99,1.3015]
[1641342184580,0.0001,168.1,167.98,97.0957]
[1641342184779,8.52,168.09,167.98,97.0957]
[1641342184977,9.28,168.09,167.98,23.4136]
[1641342185177,9.28,168.09,167.99,2.34598127]
[1641342185395,26.2624466,168.08,167.99,2.34598127]
[1641342185596,35.0424466,168.08,167.99,2.34598127]
[1641342185795,35.5424466,168.08,167.99,2.34598127]
[1641342186996,35.5424466,168.08,167.99,2.60598127]
[1641342187398,33.0424466,168.08,167.99,2.60598127]
[1641342190797,33.0424466,168.08,167.99,2.10598127]
[1641342192098,33.0424466,168.08,167.99,0.26]
[1641342192501,33.0424466,168.08,167.97,31.70213446]
[1641342193102,33.0424466,168.08,167.98,2.9060334]
[1641342193502,33.0424466,168.08,167.98,3.1660334]
[1641342193702,33.0424466,168.08,167.98,27.1070334]
[1641342201419,9.02,168.08,167.98,27.1070334]
[1641342201619,9.02,168.08,167.98,28.55554126]
[1641342201819,0.5,168.08,167.98,27.1070334]
[1641342202219,0.5,168.09,167.99,1.44850786]
[1641342202419,0.0001,168.1,167.99,1.44850786]
[1641342202619,0.0001,168.1,167.99,1.70850786]
[1641342203119,0.0001,168.1,167.99,3.05590786]
[1641342203820,0.0001,168.1,168.01,2.42209013]
[1641342204046,0.0001,168.1,168.01,2.68209013]
[1641342204247,0.0001,168.1,168.02,1.44850786]
[1641342204448,0.0001,168.1,168.02,1.94850786]
[1641342204648,0.0001,168.1,168.03,27.34393904]
[1641342204848,0.0001,168.1,168.04,2.91467424]
[1641342205050,0.0001,168.1,168.04,3.17467424]
[1641342205251,0.0001,168.1,168.05,23.2356]
[1641342205650,0.0001,168.1,168.05,23.4956]
[1641342206853,0.0001,168.1,168.05,25.44410786]
[1641342211058,0.0001,168.1,168.05,24.94410786]
[1641342212860,0.0001,168.1,168.06,1.2969]
[1641342213060,0.0001,168.1,168.06,1.5569]
[1641342216364,0.0001,168.1,168.06,1.2969]
[1641342216566,0.0001,168.1,168.05,23.2356]
[1641342216863,0.0001,168.1,168.01,1.3134]
[1641342217064,0.0001,168.1,168.02,1.44850786]
[1641342217465,0.0001,168.1,168.01,24.6814]
[1641342217664,0.0001,168.1,168.01,25.1814]
[1641342217865,0.0001,168.1,168.01,25.4414]
[1641342218267,0.0001,168.1,168.02,1.44850786]